bitfinex/quotes_SOLUSD_20240605
["timestamp","ask_amount","ask_price","bid_price","bid_amount"]
[1717557188277,6.3554,172.96,172.88,8.5606]
[1717557188469,2.1395,172.94,172.89,124.28]
[1717557188677,2.1395,172.94,172.9,2.1399]
[1717557188877,2.1395,172.94,172.91,2.1398]
[1717557189679,2.1395,172.94,172.9,2.1398]
[1717557189998,2.1396,172.93,172.9,2.1398]
[1717557190503,2.1397,172.92,172.89,2.14]
[1717557191669,2.1397,172.92,172.85,8.5621]
[1717557191670,2.1402,172.88,172.85,2.1405]
[1717557191976,2.1403,172.87,172.84,382.4406]
[1717557192307,2.1402,172.88,172.84,382.4406]
[1717557192676,2.1402,172.88,172.85,2.1405]
[1717557192875,2.1403,172.87,172.84,382.4406]
[1717557193077,6.0032,172.88,172.83,2.1407]
[1717557193078,2.1404,172.86,172.83,2.1407]
[1717557193383,2.1406,172.85,172.81,122.141]
[1717557193582,2.1406,172.85,172.82,2.1409]
[1717557193883,2.1406,172.85,172.81,120.0]
[1717557194190,23.8405,172.86,172.82,2.1408]
[1717557194386,23.8405,172.86,172.83,2.1408]
[1717557195590,2.1406,172.85,172.79,8.5652]
[1717557195776,27.9346,172.86,172.81,2.141]
[1717557195982,27.9346,172.86,172.8,2.1411]
[1717557196179,2.1407,172.84,172.8,2.1411]
[1717557197686,2.1406,172.85,172.81,2.141]
[1717557197888,21.7,172.83,172.77,120.0]
[1717557198193,2.141,172.82,172.78,2.1413]
[1717557198372,2.141,172.81,172.78,2.1413]
[1717557198573,2.141,172.82,172.78,2.1413]
[1717557199107,23.8408,172.83,172.79,2.1413]
[1717557199392,2.1409,172.82,172.78,2.1414]
[1717557200096,7.24,172.79,172.78,2.1414]
[1717557201983,7.24,172.79,172.77,122.1415]
[1717557202184,7.24,172.78,172.77,122.1415]
[1717557207202,7.24,172.78,172.77,2.1415]
[1717557207492,13.6366,172.78,172.74,0.03600424]
[1717557207694,7.24,172.75,172.74,0.03600424]
[1717557208395,7.24,172.75,172.74,2.17780424]
[1717557208898,2.1414,172.78,172.74,2.17780424]
[1717557208899,2.1413,172.79,172.76,2.1416]
[1717557209097,7.24,172.77,172.75,2.1417]
[1717557209278,7.24,172.76,172.75,2.1417]
[1717557209777,7.24,172.76,172.74,0.03600424]
[1717557210013,7.24,172.75,172.74,0.03600424]
[1717557210313,7.24,172.75,172.74,2.17790424]
[1717557210801,7.24,172.75,172.74,0.03600424]
[1717557212394,7.24,172.75,172.74,2.17790424]
[1717557212689,7.24,172.75,172.74,0.03600424]
[1717557215074,9.3818,172.75,172.74,0.03600424]
[1717557215276,13.6654,172.75,172.74,0.03600424]
[1717557215498,9.3818,172.75,172.74,0.03600424]
[1717557216510,37.5252,172.8,172.75,2.1418]
[1717557216682,28.96,172.8,172.74,4.31970424]
[1717557216990,2.1413,172.79,172.74,120.03600424]
[1717557217191,7.24,172.75,172.74,122.17790424]
[1717557217392,7.24,172.75,172.74,2.17790424]
[1717557217898,7.24,172.75,172.74,122.17790424]
[1717557218608,7.24,172.75,172.74,120.03600424]
[1717557218805,7.24,172.75,172.74,0.03600424]
[1717557219314,7.24,172.75,172.74,2.17790424]
[1717557223494,7.24,172.75,172.74,0.03600424]
[1717557224292,7.24,172.75,172.74,2.17790424]
[1717557224797,7.24,172.75,172.74,0.03600424]
[1717557227915,7.24,172.75,172.74,2.17790424]
[1717557228411,7.24,172.75,172.74,0.03600424]
[1717557228632,2.1416,172.77,172.74,0.03600424]
[1717557228792,7.24,172.75,172.74,0.03600424]
[1717557234302,2.1416,172.77,172.74,0.03600424]
[1717557234504,7.24,172.75,172.74,0.03600424]
[1717557234704,7.24,172.75,172.74,2.17780424]
[1717557235406,7.24,172.75,172.74,2.17790424]
[1717557236801,15.7177,172.75,172.74,0.03600424]
[1717557238508,13.5759,172.75,172.74,0.03600424]
[1717557239019,28.29622601,172.97,172.74,0.03600424]
[1717557239020,17.1949,172.81,172.74,120.03600424]
[1717557239337,7.24,172.75,172.74,2.17780424]
[1717557240434,2.1415,172.77,172.74,0.03600424]
[1717557240629,7.24,172.75,172.74,0.03600424]
[1717557241001,2.1421,172.72,172.71,0.8210188]
[1717557241221,9.3821,172.72,172.71,0.8210188]
[1717557242122,7.24,172.72,172.71,0.8210188]
[1717557242322,7.24,172.72,172.71,2.9632188]
[1717557242929,7.24,172.72,172.71,0.8210188]
[1717557243663,2.1418,172.75,172.71,0.8210188]
[1717557243953,2.1418,172.75,172.71,2.9633188]
[1717557244125,7.24,172.72,172.71,2.9633188]
[1717557244522,7.24,172.72,172.71,0.8210188]
[1717557245129,7.24,172.72,172.71,2.9633188]
[1717557246355,2.1416,172.77,172.73,2.142]
[1717557246722,7.24,172.74,172.73,2.142]
[1717557246917,7.24,172.74,172.72,2.1421]
[1717557247349,7.24,172.73,172.72,2.1421]
[1717557248330,7.24,172.73,172.71,2.9632188]
[1717557248652,2.1418,172.75,172.71,2.9632188]
[1717557248838,7.24,172.72,172.71,2.9632188]
[1717557249864,7.24,172.72,172.71,0.8210188]
[1717557250360,14.48,172.72,172.71,0.8210188]
[1717557250658,7.24,172.72,172.71,0.8210188]
[1717557252391,7.24,172.72,172.71,2.9633188]
[1717557252561,4.2831,172.78,172.74,2.1419]
[1717557252562,2.1415,172.78,172.74,2.1419]
[1717557252726,7.24,172.75,172.74,2.1419]
[1717557252927,2.1414,172.79,172.75,2.1417]
[1717557253144,7.24,172.76,172.74,2.1418]
[1717557253355,7.24,172.75,172.74,2.1418]
[1717557255545,7.24,172.75,172.72,2.1421]
[1717557255849,7.24,172.73,172.72,2.1421]
[1717557260347,7.24,172.73,172.71,2.9632188]
[1717557260661,7.24,172.72,172.71,2.9632188]
[1717557261551,7.24,172.72,172.71,0.8210188]
[1717557263144,7.24,172.72,172.71,2.9633188]
[1717557264247,7.24,172.72,172.71,0.8210188]
[1717557264560,23.101,172.72,172.71,0.8210188]
[1717557264766,55.5318,172.72,172.71,0.8210188]
[1717557264960,2.1424,172.7,172.66,2.1428]
[1717557265143,7.24,172.67,172.66,2.1428]
[1717557266249,14.48,172.67,172.57,120.0]
[1717557266459,7.24,172.58,172.57,126.4319]
[1717557266655,2.1432,172.64,172.6,2.1436]
[1717557266852,2.1431,172.65,172.61,2.1435]
[1717557267059,7.24,172.62,172.61,2.1435]
[1717557267566,7.24,172.62,172.61,122.1435]
[1717557268840,7.24,172.62,172.61,2.1435]
[1717557269049,7.24,172.62,172.6,2.1436]
[1717557269261,2.1432,172.64,172.6,2.1436]
[1717557269565,7.24,172.61,172.6,2.1436]
[1717557271656,7.24,172.61,172.6,122.1436]
[1717557271863,25.6305,172.76,172.6,122.1436]
[1717557271864,2.1426,172.68,172.62,130.7169]
[1717557272050,7.24,172.67,172.65,4.286]
[1717557272259,7.24,172.67,172.66,2.1429]
[1717557272562,2.1422,172.72,172.66,120.0]
[1717557272746,2.1422,172.72,172.68,2.1426]
[1717557273143,7.24,172.69,172.67,2.1427]
[1717557273363,7.24,172.68,172.66,2.1428]
[1717557273552,7.24,172.67,172.66,2.1428]
[1717557273956,31.1023,172.71,172.67,2.1427]
[1717557274162,7.24,172.68,172.67,2.1428]
[1717557274361,2.1421,172.73,172.69,2.1425]
[1717557274671,7.24,172.7,172.69,2.1425]
[1717557277563,7.24,172.7,172.69,6.4276]
[1717557277752,7.24,172.7,172.69,12.7735]
[1717557277955,7.24,172.71,172.7,122.1424]
[1717557278966,6.1966,172.76,172.71,2.1422]
[1717557279166,7.24,172.72,172.71,2.1422]
[1717557279367,2.1417,172.76,172.72,2.1421]
[1717557279663,7.24,172.73,172.72,2.1421]
[1717557280654,2.1417,172.76,172.72,2.1421]
[1717557280860,7.24,172.73,172.72,2.1421]
[1717557281058,2.1416,172.77,172.7,124.2847]
[1717557281059,2.1413,172.8,172.74,120.0]
[1717557281252,7.24,172.75,172.74,2.1419]
[1717557282065,2.1413,172.79,172.75,2.1417]
[1717557282401,7.24,172.76,172.75,2.1417]
[1717557283364,2.1413,172.79,172.75,2.1417]
[1717557283562,7.24,172.76,172.75,2.1417]
[1717557286262,28.96,172.8,172.78,2.1414]
[1717557286576,7.24,172.79,172.78,2.1414]
[1717557287075,2.141,172.82,172.78,2.1414]
[1717557287274,7.24,172.79,172.78,2.1414]
[1717557287981,7.24,172.79,172.77,2.1415]
[1717557288277,7.24,172.78,172.77,2.1415]
[1717557289069,2.1406,172.85,172.81,2.141]
[1717557289276,2.1406,172.85,172.8,120.0]
[1717557289277,7.24,172.82,172.8,2.1411]
[1717557289472,7.24,172.81,172.8,2.1411]
[1717557289772,2.1406,172.85,172.81,2.141]
[1717557289958,2.1411,172.81,172.77,382.4415]
[1717557290153,2.1409,172.82,172.78,2.1413]
[1717557290359,7.24,172.79,172.78,2.1414]
[1717557290969,4.74,172.8,172.79,2.1413]
[1717557291172,7.24,172.81,172.8,122.1412]
[1717557291957,2.1405,172.86,172.82,2.1409]
[1717557292156,7.24,172.83,172.82,120.0]
[1717557292367,7.24,172.83,172.82,122.1409]
[1717557292957,2.1404,172.87,172.82,122.1409]
[1717557293153,2.1404,172.87,172.83,2.1408]
[1717557293364,2.1404,172.87,172.82,120.0]
[1717557293553,7.24,172.83,172.82,122.1409]
[1717557294491,2.1402,172.88,172.83,2.1407]
[1717557294787,2.1402,172.88,172.84,2.1406]
[1717557294960,7.24,172.85,172.84,2.1406]
[1717557295161,7.24,172.85,172.83,2.1407]
[1717557295378,7.24,172.84,172.82,2.1408]
[1717557295568,7.24,172.83,172.82,2.1408]
[1717557295879,6.4196,172.91,172.8,126.4236]
[1717557295880,4.2792,172.93,172.85,120.0]
[1717557296184,2.1397,172.92,172.87,2.1402]
[1717557296485,19.2554,172.94,172.85,120.0]
[1717557296486,7.24,172.88,172.86,2.1403]
[1717557296690,2.1398,172.91,172.86,2.1403]
[1717557296987,7.24,172.87,172.86,2.1403]
[1717557297358,2.1399,172.91,172.86,2.1403]
[1717557297559,4.2792,172.93,172.85,2.1405]
[1717557297560,7.24,172.87,172.85,2.1405]
[1717557297761,7.24,172.86,172.81,120.0]
[1717557297991,7.24,172.83,172.82,2.1409]
[1717557298459,7.24,172.83,172.8,6.5856]
[1717557298460,2.1405,172.86,172.79,519.571]
[1717557298770,7.24,172.81,172.8,2.1412]
[1717557300271,7.24,172.81,172.8,6.4236]
[1717557300670,7.24,172.81,172.8,2.1412]
[1717557301086,7.24,172.81,172.8,6.4236]
[1717557301695,2.1402,172.88,172.84,2.1406]
[1717557301875,7.24,172.85,172.84,2.1406]
[1717557302681,7.24,172.85,172.83,2.1407]
[1717557302866,2.1402,172.88,172.84,2.1407]
[1717557303066,7.24,172.85,172.83,2.1407]
[1717557303367,4.2795,172.92,172.84,120.0]
[1717557303585,2.1397,172.92,172.87,2.1402]
[1717557303889,7.24,172.88,172.87,2.1402]
[1717557304180,7.24,172.88,172.86,2.1404]
[1717557304388,7.24,172.87,172.85,2.1405]
[1717557304569,7.24,172.86,172.85,2.1405]
[1717557305759,7.24,172.86,172.81,12.8461]
[1717557306086,7.24,172.82,172.8,2.1411]
[1717557306286,7.24,172.81,172.8,2.1411]
[1717557306467,7.24,172.81,172.8,2.1412]
[1717557306883,35.1913,172.89,172.81,120.0]
[1717557307084,28.96,172.89,172.82,6.4228]
[1717557307358,7.24,172.83,172.82,12.8455]
[1717557307602,28.96,172.89,172.84,120.0]
[1717557307887,2.14,172.9,172.86,2.1404]
[1717557308088,7.24,172.87,172.86,2.1404]
[1717557308278,7.24,172.87,172.83,10.704]
[1717557308279,7.24,172.87,172.82,8.5638]
[1717557308486,7.24,172.89,172.85,2.1405]
[1717557308487,28.96,172.89,172.85,2.1405]
[1717557308781,7.24,172.86,172.79,4.2825]
[1717557308981,7.24,172.8,172.79,12.8477]
[1717557309284,2.1405,172.86,172.81,2.1409]
[1717557309489,2.1405,172.86,172.82,2.1409]
[1717557309674,7.24,172.83,172.82,2.1409]
[1717557309991,7.24,172.83,172.81,2.141]
[1717557310188,7.24,172.82,172.81,2.141]
[1717557310886,7.24,172.82,172.79,2.1413]
[1717557311092,7.24,172.8,172.79,2.1412]
[1717557311895,21.72,172.84,172.78,391.007]
[1717557312101,21.72,172.84,172.81,2.141]
[1717557312288,2.1405,172.86,172.82,2.1409]
[1717557312598,4.2801,172.9,172.84,2.1406]
[1717557312788,23.8601,172.89,172.83,4.2816]
[1717557312963,2.1403,172.87,172.81,128.5638]
[1717557313168,2.1403,172.87,172.83,2.1407]
[1717557313491,2.1403,172.87,172.82,2.1408]
[1717557313662,2.1404,172.87,172.8,4.2822]
[1717557313868,2.1404,172.87,172.82,2.1408]
[1717557314067,2.1404,172.86,172.82,2.1408]
[1717557314489,2.1404,172.87,172.82,2.1408]
[1717557314798,2.1404,172.87,172.83,2.1408]
[1717557317091,2.1402,172.88,172.83,2.1408]
[1717557317494,21.72,172.89,172.84,2.1406]
[1717557317990,2.1402,172.88,172.83,2.1407]
[1717557318293,2.1403,172.87,172.83,2.1407]
[1717557318600,2.1402,172.88,172.84,2.1406]
[1717557318967,2.1402,172.88,172.82,120.0]
[1717557319183,2.1403,172.87,172.83,2.1407]
[1717557319370,2.1402,172.88,172.83,2.1407]
[1717557320676,21.72,172.86,172.77,8.5659]
[1717557320873,21.72,172.86,172.75,139.2759]
[1717557320874,2.1409,172.82,172.75,139.2759]
[1717557321109,21.72,172.83,172.76,2.1416]
[1717557321110,26.0018,172.83,172.76,2.1416]
[1717557321303,2.1412,172.8,172.76,2.1416]
[1717557322294,2.1413,172.79,172.75,2.1417]
[1717557322675,21.72,172.8,172.7,510.6449]
[1717557322883,2.1415,172.77,172.73,2.142]
[1717557323087,2.1417,172.76,172.72,2.1421]
[1717557323276,2.1416,172.77,172.72,2.1421]
[1717557323481,2.1416,172.77,172.73,2.142]
[1717557324575,2.1418,172.75,172.71,2.1422]
[1717557324772,2.1417,172.76,172.72,2.1421]
[1717557325194,23.8616,172.77,172.72,2.1421]
[1717557325402,23.8616,172.77,172.73,2.142]
[1717557325602,23.8612,172.8,172.75,2.1417]
[1717557325906,21.72,172.8,172.77,2.1415]
[1717557326601,21.72,172.8,172.76,122.1416]
[1717557326896,23.8612,172.8,172.76,122.1416]
[1717557328902,2.1415,172.77,172.73,2.1419]
[1717557329282,6.4241,172.79,172.71,2.1422]
[1717557329487,2.1418,172.76,172.72,2.1421]
[1717557330200,4.2832,172.77,172.7,500.3]
[1717557330406,2.1417,172.76,172.72,2.1421]
[1717557331716,10.7036,172.84,172.77,2.1414]
[1717557331900,2.1411,172.81,172.77,2.1414]
[1717557332594,2.1411,172.81,172.76,2.1416]
[1717557333185,2.1412,172.8,172.76,2.1416]
[1717557333581,2.1411,172.81,172.76,2.1416]
[1717557333786,21.72,172.83,172.73,120.17]
[1717557333983,2.1413,172.79,172.75,2.1417]
[1717557334195,2.1412,172.8,172.76,2.1416]
[1717557334416,2.1411,172.81,172.77,2.1415]
[1717557334715,2.1412,172.8,172.76,2.1416]
[1717557335016,26.0018,172.83,172.77,2.1415]
[1717557335218,23.8608,172.83,172.77,120.0]
[1717557335515,23.8608,172.83,172.79,2.1412]
[1717557335911,2.1409,172.82,172.78,2.1413]
[1717557336516,23.8609,172.83,172.78,2.1413]
[1717557337022,21.72,172.83,172.79,2.1412]
[1717557337325,23.8608,172.83,172.79,2.1412]
[1717557337498,23.8608,172.83,172.78,2.1414]
[1717557337692,23.8608,172.83,172.79,2.1413]
[1717557338413,23.8608,172.83,172.8,2.1411]
[1717557338414,21.72,172.83,172.8,2.1411]
[1717557339502,21.72,172.83,172.79,2.1412]
[1717557339707,21.72,172.83,172.8,2.1411]
[1717557339908,2.1407,172.84,172.8,2.1411]
[1717557341325,2.1407,172.84,172.79,120.0]
[1717557341326,2.1408,172.83,172.79,2.1412]
[1717557341820,2.1409,172.83,172.78,2.1414]
[1717557342430,2.1409,172.83,172.79,2.1413]
[1717557343023,2.1409,172.83,172.78,2.1413]
[1717557344018,2.1409,172.83,172.79,2.1413]
[1717557345331,2.1405,172.86,172.82,2.1409]
[1717557345508,21.72,172.87,172.81,130.7051]
[1717557345706,21.72,172.87,172.82,4.2819]
[1717557346020,21.72,172.87,172.83,2.1407]
[1717557346407,21.72,172.87,172.84,2.1406]
[1717557346611,2.1402,172.88,172.84,2.1406]
[1717557347012,2.1402,172.88,172.83,122.1407]
[1717557347207,2.1402,172.88,172.84,2.1407]
[1717557348111,14.9768,172.94,172.85,120.0]
[1717557348302,14.9768,172.94,172.87,2.1403]
[1717557348303,2.1398,172.91,172.87,2.1403]
[1717557348500,2.1397,172.92,172.87,2.1403]
[1717557349107,2.1398,172.91,172.87,122.1403]
[1717557349302,2.1396,172.93,172.88,2.1401]
[1717557349534,2.1396,172.93,172.87,120.0]
[1717557349705,2.1395,172.94,172.89,2.14]
[1717557349922,2.1395,172.93,172.89,2.14]
[1717557350209,2.1397,172.92,172.88,2.1401]
[1717557350716,2.1397,172.92,172.87,122.1402]
[1717557350918,2.1397,172.92,172.87,128.443]
[1717557351307,2.1397,172.92,172.88,2.1402]
[1717557351622,2.1396,172.93,172.88,2.1402]
[1717557352026,2.1396,172.93,172.89,2.14]
[1717557352226,2.1397,172.92,172.88,2.1401]
[1717557352828,2.1396,172.93,172.88,2.1401]
[1717557353325,2.1396,172.93,172.89,2.14]
[1717557353515,2.1396,172.93,172.88,2.1401]
[1717557354807,2.1396,172.93,172.89,2.14]
[1717557355623,2.1395,172.94,172.89,2.14]
[1717557355835,2.1396,172.93,172.88,2.1401]
[1717557358535,2.1399,172.91,172.87,120.0]
[1717557358835,2.1398,172.92,172.88,2.1402]
[1717557359035,2.1396,172.93,172.88,2.1402]
[1717557360112,2.1395,172.94,172.89,122.14]
[1717557360323,2.1395,172.94,172.89,120.0]
[1717557360513,2.1395,172.94,172.89,122.14]
[1717557361344,2.1395,172.93,172.89,120.0]
[1717557361515,2.1395,172.94,172.89,122.14]
[1717557361824,2.1395,172.94,172.9,2.1399]
[1717557362031,15.6925,173.0,172.87,384.5805]
[1717557362032,4.69798657,173.04,172.96,6.2804]
[1717557362215,21.72,173.04,172.97,2.139]
[1717557362720,2.1384,173.02,172.97,2.139]
[1717557363414,21.72,173.04,172.93,384.5791]
[1717557363641,21.72,173.0,172.93,380.3]
[1717557363840,2.139,172.98,172.93,382.4394]
[1717557364038,2.1389,172.98,172.93,382.4395]
[1717557364443,21.72,172.97,172.93,380.3]
[1717557364737,21.72,172.97,172.91,2.1398]
[1717557364738,2.1393,172.96,172.91,2.1398]
[1717557365749,25.9982,172.97,172.88,6.3002]
[1717557365914,2.1394,172.95,172.9,2.1399]
[1717557366116,4.2785,172.96,172.88,6.3002]
[1717557366423,2.1399,172.9,172.87,380.3]
[1717557366737,2.1399,172.9,172.85,2.1405]
[1717557367237,2.1399,172.91,172.85,2.1405]
[1717557367447,2.1399,172.9,172.84,8.5378]
[1717557367629,2.1399,172.91,172.85,2.1405]
[1717557367827,23.8597,172.92,172.87,2.1403]
[1717557368244,21.72,172.92,172.88,2.1401]
[1717557368419,2.1395,172.94,172.88,2.1401]
[1717557368619,2.1396,172.93,172.88,2.1401]
[1717557368923,2.1398,172.91,172.86,2.1404]
[1717557369751,4.2789,172.94,172.85,120.0]
[1717557369752,2.1397,172.92,172.87,2.1403]
[1717557369968,2.1397,172.92,172.86,2.1403]
[1717557370937,2.1397,172.92,172.87,2.1403]
[1717557371440,2.1396,172.93,172.88,2.1401]
[1717557371928,21.72,172.95,172.87,120.0]
[1717557372128,23.8594,172.95,172.9,2.1398]
[1717557372439,21.72,172.97,172.9,120.0]
[1717557372641,2.1392,172.96,172.91,2.1397]
[1717557372941,21.72,172.97,172.93,2.1395]
[1717557373118,21.72,172.97,172.92,120.0]
[1717557373319,2.139,172.98,172.93,2.1395]
[1717557373949,2.139,172.98,172.92,120.0]
[1717557373950,2.1388,173.0,172.92,126.419]
[1717557374126,2.1386,173.01,172.96,2.1391]
[1717557374727,2.1385,173.02,172.97,2.139]
[1717557375028,2.1385,173.02,172.97,8.6581]
[1717557375232,2.1385,173.02,172.97,2.139]
[1717557376225,2.1385,173.02,172.96,2.1391]
[1717557376847,25.9968,173.03,172.93,6.5191]
[1717557377042,21.72,173.0,172.94,140.0]
[1717557377444,21.72,173.0,172.96,2.1391]
[1717557379738,6.4146,173.05,172.99,2.1387]
[1717557379739,2.1382,173.05,172.99,2.1387]
[1717557379968,21.72,173.04,172.96,124.2784]
[1717557380158,2.1383,173.03,172.98,2.1388]
[1717557380964,2.1383,173.03,172.97,2.139]
[1717557381262,2.1384,173.02,172.97,2.139]
[1717557381867,2.1384,173.02,172.96,2.1391]
[1717557382646,21.72,173.04,172.96,2.1391]
[1717557382647,2.1386,173.01,172.96,2.1391]
[1717557382847,23.8586,173.01,172.96,2.1391]
[1717557383050,2.1387,173.0,172.94,2.1393]
[1717557383265,2.1389,172.98,172.93,2.1395]
[1717557383572,21.72,172.98,172.94,2.1394]
[1717557383941,21.72,172.98,172.91,380.3]
[1717557384149,21.72,172.98,172.89,6.3511]
[1717557384150,2.1391,172.97,172.89,126.3511]
[1717557384359,23.859,172.98,172.93,2.1395]
[1717557384556,21.72,172.98,172.93,2.1395]
[1717557384764,21.72,172.98,172.94,2.1394]
[1717557385443,4.2768,173.03,172.93,120.0]
[1717557385669,2.1388,173.0,172.95,2.1392]
[1717557385872,23.8586,173.01,172.95,2.1392]
[1717557386084,2.1387,173.0,172.95,2.1392]
[1717557386560,2.1388,172.99,172.94,2.1394]
[1717557387946,23.8586,173.01,172.95,2.1393]
[1717557388353,2.1386,173.01,172.96,2.1392]
[1717557388554,23.8586,173.01,172.96,2.1392]
[1717557388768,23.8586,173.01,172.93,120.0]
[1717557388769,2.1384,173.02,172.97,2.139]
[1717557389344,23.8584,173.03,172.98,2.1389]
[1717557389549,21.72,173.03,172.99,2.1388]
[1717557389771,2.1382,173.04,172.99,2.1388]
[1717557390249,2.1383,173.03,172.98,2.1389]
[1717557390448,21.72,173.05,172.97,8.5357]
[1717557390449,2.1384,173.02,172.97,8.5357]
[1717557390668,21.72,173.04,173.0,2.1387]
[1717557391151,23.8582,173.04,172.99,2.1387]
[1717557391659,12.8276,173.07,172.97,6.3967]
[1717557391860,2.1382,173.04,172.99,2.1387]
[1717557392364,23.8581,173.05,172.99,2.1387]
[1717557392767,2.1382,173.04,172.99,2.1387]
[1717557393370,21.72,173.05,172.97,2.139]
[1717557393371,28.1343,173.05,172.97,2.139]
[1717557393575,21.72,173.02,172.94,400.3]
[1717557393761,2.1388,173.0,172.95,2.1393]
[1717557393960,25.9972,173.01,172.94,380.3]
[1717557394169,2.1388,172.99,172.94,382.4394]
[1717557394555,2.1387,173.0,172.95,2.1393]
[1717557395479,23.8586,173.01,172.96,2.1391]
[1717557395971,2.1387,173.0,172.96,2.1391]
[1717557396770,23.8586,173.01,172.96,2.1391]
[1717557396955,2.1387,173.0,172.95,2.1393]
[1717557397575,2.1388,172.99,172.94,382.4394]
[1717557397775,2.1387,173.0,172.95,2.1393]
[1717557398088,25.998,172.98,172.91,2.1397]
[1717557398254,4.2782,172.97,172.87,500.3]
[1717557398565,21.72,172.95,172.91,2.1398]
[1717557398956,21.72,172.95,172.89,4.2801]
[1717557399181,23.8593,172.95,172.9,2.1399]
[1717557399561,21.72,172.95,172.91,2.1397]
[1717557400183,21.72,172.95,172.92,2.1396]
[1717557400385,2.1391,172.97,172.92,2.1396]
[1717557400554,2.1392,172.96,172.92,2.1396]
[1717557400762,2.1392,172.96,172.92,2.1397]
[1717557401578,2.1392,172.96,172.91,2.1397]
[1717557401881,4.2782,172.97,172.9,2.1399]
[1717557402182,2.1394,172.94,172.9,2.1399]
[1717557402356,2.1394,172.95,172.9,2.1399]
[1717557402559,4.2782,172.97,172.9,2.1399]
[1717557402952,2.1393,172.95,172.9,2.1399]
[1717557403149,2.1395,172.94,172.89,2.14]
[1717557403575,2.1396,172.93,172.89,2.14]
[1717557404284,2.1395,172.94,172.89,2.14]
[1717557404486,23.8594,172.95,172.9,2.1399]
[1717557404662,23.8594,172.95,172.91,2.1398]
[1717557404863,2.1394,172.94,172.9,2.1399]
[1717557405283,23.8594,172.95,172.9,2.1399]
[1717557405990,23.8594,172.95,172.91,2.1397]
[1717557406153,2.1395,172.94,172.89,2.1399]
[1717557406357,21.72,172.95,172.86,12.8425]
[1717557406968,25.9987,172.95,172.88,2.1401]
[1717557407276,2.1396,172.93,172.88,2.1401]
[1717557407575,2.1396,172.93,172.89,2.14]
[1717557407872,2.1396,172.93,172.88,2.1402]
[1717557408461,2.1397,172.92,172.88,2.1402]
[1717557409371,2.1397,172.92,172.87,2.1402]
[1717557409562,2.14,172.9,172.85,2.1405]
[1717557409758,25.9997,172.91,172.84,2.1406]
[1717557410071,2.1401,172.89,172.85,2.1405]
[1717557410271,2.14,172.9,172.85,2.1405]
[1717557410474,2.1401,172.89,172.85,2.1405]
[1717557410688,2.14,172.9,172.86,2.1404]
[1717557411158,2.14,172.9,172.85,2.1405]
[1717557411679,23.8599,172.91,172.84,130.7033]
[1717557411980,23.8599,172.91,172.83,6.4224]
[1717557411981,2.1398,172.92,172.88,2.1401]
[1717557412379,2.1398,172.91,172.87,2.1402]
[1717557412577,2.1399,172.9,172.86,2.1404]
[1717557413874,2.1399,172.91,172.86,2.1404]
[1717557414492,2.1399,172.91,172.87,2.1403]
[1717557419581,2.1397,172.92,172.88,2.1401]
[1717557420283,6.4988,172.91,172.82,120.0]